fUSD/lending_fUSD_20260224
["ID","MTS","AMOUNT","RATE_DAILY","PERIOD"]
[406579544,1771953111702,-500.0,0.00045205,120]
[406579545,1771953111711,-500.0,0.00045205,120]
[406579546,1771953111720,-500.0,0.00045205,120]
[406579547,1771953111730,-500.0,0.00045205,120]
[406579548,1771953111739,-500.0,0.00045205,120]
[406579549,1771953111751,-562.4371652,0.00045205,120]
[406579550,1771953111765,-921.07,0.00045205,120]
[406579551,1771953111775,-500.0,0.00045205,120]
[406579552,1771953111784,-500.0,0.00045205,120]
[406579553,1771953111793,-500.0,0.00045205,120]
[406579554,1771953111802,-500.0,0.00045205,120]
[406579555,1771953111812,-500.0,0.00045205,120]
[406579556,1771953111822,-500.0,0.00045205,120]
[406579557,1771953111831,-921.07,0.00045205,120]
[406579558,1771953111841,-503.83286453,0.00045205,120]
[406579559,1771953111851,-500.0,0.00045205,120]
[406579560,1771953111860,-921.07,0.00045205,120]
[406579561,1771953111870,-500.0,0.00045205,120]
[406579562,1771953111879,-500.0,0.00045205,120]
[406579563,1771953111889,-301.79041692,0.00045205,120]
[406579564,1771953111898,-500.0,0.00045205,120]
[406579565,1771953111908,-921.07,0.00045205,120]
[406579566,1771953111920,-500.0,0.00045205,120]
[406579567,1771953111930,-500.0,0.00045205,120]
[406579568,1771953111939,-921.07,0.00045205,120]
[406579569,1771953111948,-154.0,0.000453,120]
[406579570,1771953111958,-350.0,0.00045374,2]
[406579571,1771953111967,-1339.0,0.00045375,2]
[406579572,1771953111976,-151.0,0.000454,120]
[406579573,1771953111985,-151.0,0.000454,120]
[406579574,1771953111995,-17142.90832679,0.000454,30]
[406579575,1771953112955,-295.78,0.00015616,2]
[406579576,1771953112965,-413.0,0.00044709,2]
[406579577,1771953112974,-158.87351418,0.00045205,120]
[406579578,1771953112984,-500.0,0.00045205,120]
[406579579,1771953112993,-500.0,0.00045205,120]
[406579580,1771953113002,-921.07,0.00045205,120]
[406579581,1771953113011,-3461.78540108,0.000454,30]
[406579582,1771953113051,-500.0,0.00043766,60]
[406579583,1771953113060,-500.0,0.00045205,120]
[406579584,1771953113070,-500.0,0.00045205,120]
[406579585,1771953113079,-500.0,0.00045205,120]
[406579586,1771953113088,-201466.16660374,0.000454,30]
[406579587,1771953113264,-151.0,0.00014634,2]
[406579588,1771953113274,-500.0,0.00043766,60]
[406579589,1771953113283,-500.0,0.00043766,60]
[406579590,1771953113293,-500.0,0.00043766,60]
[406579591,1771953113303,-500.0,0.00043766,60]
[406579592,1771953113312,-921.07,0.00045205,120]
[406579593,1771953113322,-500.0,0.00045205,120]
[406579594,1771953113331,-500.0,0.00045205,120]
[406579595,1771953113341,-921.07,0.00045205,120]
[406579596,1771953113350,-500.0,0.00045205,120]
[406579597,1771953113359,-500.0,0.00045205,120]
[406579598,1771953113369,-500.0,0.00045205,120]
[406579599,1771953113378,-921.07,0.00045205,120]
[406579600,1771953113387,-500.0,0.00045205,120]
[406579601,1771953113396,-500.0,0.00045205,120]
[406579602,1771953113405,-509.66439632,0.00045205,120]
[406579603,1771953113415,-331.89162244,0.00045205,120]
[406579604,1771953113425,-921.07,0.00045205,120]
[406579605,1771953113435,-500.0,0.00045205,120]
[406579606,1771953113444,-921.07,0.00045205,120]
[406579607,1771953113454,-500.0,0.00045205,120]
[406579608,1771953113463,-921.07,0.00045205,120]
[406579609,1771953113473,-500.0,0.00045205,120]
[406579610,1771953113482,-921.07,0.00045205,120]
[406579611,1771953113492,-500.0,0.00045205,120]
[406579612,1771953113501,-921.07,0.00045205,120]
[406579613,1771953113511,-500.0,0.00045205,120]
[406579614,1771953113521,-500.0,0.00045205,120]
[406579615,1771953113531,-921.07,0.00045205,120]
[406579616,1771953113540,-320.06142419,0.00045205,120]
[406579617,1771953113550,-921.07,0.00045205,120]
[406579618,1771953113560,-295.04002226,0.000454,30]
[406579619,1771953113603,-921.07,0.00045205,120]
[406579620,1771953113612,-921.20843751,0.00045205,120]
[406579621,1771953113622,-66962.67070226,0.000454,30]
[406579622,1771953113633,-46704.86095928,0.000454,30]
[406579623,1771953113644,-16205.19742057,0.000454,30]
[406579624,1771953113718,-4068.28864446,0.00019429,2]
[406579625,1771953113727,-500.0,0.00043766,60]
[406579626,1771953113737,-500.0,0.00043766,60]
[406579627,1771953113746,-63179.78123686,0.000454,30]
[406579628,1771953113779,-7380.22369702,0.000454,30]
[406579629,1771953113801,-3215.00279533,0.000454,30]
[406579630,1771953115006,-237454.02942811,0.00045592,30]
[406579631,1771953115028,-3607.81603715,0.00045592,30]
[406579632,1771953115051,-27506.412221,0.00045592,30]
[406579633,1771953115075,-6721142.35867948,0.00045592,30]
[406579634,1771953115098,-5567.34713852,0.00045592,30]
[406579635,1771953115122,-27161.09541512,0.00045592,30]
[406579636,1771953115145,-52983.66405392,0.00045592,30]
[406579637,1771953115167,-9578.49376747,0.00045592,30]
[406579638,1771953115190,-750.10006921,0.00045592,120]
[406579639,1771953115212,-67897.78396511,0.00045592,30]
[406579640,1771953115233,-7442.39081503,0.00045592,30]
[406579641,1771953115255,-22690.0,0.00045592,30]
[406579642,1771953115277,-9530.49695587,0.00045592,30]
[406579643,1771953115300,-16568.43930055,0.00045592,30]
[406579644,1771953115323,-55090.26918717,0.00045592,30]
[406579645,1771953115349,-502.02032608,0.00045592,30]
[406579646,1771953115370,-27243.76833008,0.00045592,30]
[406579647,1771953115392,-5932.47454957,0.00045592,120]
[406579648,1771953115414,-321.81300984,0.00045592,120]
[406579649,1771953115436,-500.0,0.00045592,120]
[406579650,1771953115458,-500.0,0.00045592,120]
[406579651,1771953115480,-633.60200246,0.00045592,120]
[406579652,1771953115504,-1699395.62474826,0.00045592,30]
[406579653,1771953116174,-3567500.9265149,0.00045592,30]
[406579654,1771953116199,-50266.12158622,0.00045592,47]
[406579655,1771953116223,-6211.63035718,0.00045592,47]
[406579656,1771953116247,-216.14,0.00045592,30]
[406579657,1771953116272,-200.0,0.00045592,30]
[406579658,1771953122865,150.0,9.247e-05,2]
[406579659,1771953123085,146.0,9.247e-05,2]
[406579660,1771953132965,-500.0,0.0002544,11]
[406579661,1771953132988,-500.0,0.0002885,14]
[406579662,1771953133011,-173.970047,0.00028899,30]
[406579663,1771953133034,-506.54206815,0.0003,120]
[406579664,1771953133057,-500.0,0.0003226,17]
[406579665,1771953133081,-500.0,0.0003567,20]
[406579666,1771953133104,-158.87,0.000357,14]
[406579667,1771953133127,-500.0,0.0003908,23]
[406579668,1771953133150,-906.0,0.00039177,30]
[406579669,1771953133173,-325.0,0.00039177,30]
[406579670,1771953133197,-500.0,0.0004249,26]
[406579671,1771953133219,-151.0,0.00043765,60]
[406579672,1771953133241,-151.0,0.00043765,60]
[406579673,1771953133264,-151.0,0.00043765,60]
[406579674,1771953133286,-151.0,0.00043765,60]
[406579675,1771953133309,-151.0,0.00043765,60]
[406579676,1771953133333,-229.85503921,0.00043765,60]
[406579677,1771953133358,-150.0,0.00045056,30]
[406579678,1771953133382,-4068.28864446,0.00045105,28]
[406579679,1771953133405,-508.53608062,0.00045105,28]
[406579680,1771953133430,-508.53608055,0.0004516,28]
[406579681,1771953133454,-150.0,0.00045205,120]
[406579682,1771953133477,-500.0,0.00045205,120]
[406579683,1771953133500,-500.0,0.00045205,120]
[406579684,1771953133523,-500.0,0.00045205,120]
[406579685,1771953133545,-500.0,0.00045205,120]
[406579686,1771953133574,-500.0,0.00045205,120]
[406579687,1771953133621,-270.98624269,0.00045205,120]
[406579688,1771953133662,-435.27760797,0.00045205,120]
[406579689,1771953133687,-403.58208244,0.00045205,120]
[406579690,1771953133714,-151.0,0.00045205,60]
[406579691,1771953133740,-151.0,0.00045205,60]
[406579692,1771953133763,-151.0,0.00045205,60]
[406579693,1771953133787,-270.21221117,0.00045205,120]
[406579694,1771953133809,-500.0,0.00045205,120]
[406579695,1771953133832,-500.0,0.00045205,120]
[406579696,1771953133854,-500.0,0.00045205,120]
[406579697,1771953133876,-500.0,0.00045205,120]
[406579698,1771953133898,-500.0,0.00045205,120]
[406579699,1771953133921,-500.0,0.00045205,120]
[406579700,1771953133945,-500.0,0.00045205,120]
[406579701,1771953133966,-500.0,0.00045205,120]
[406579702,1771953133988,-500.0,0.00045205,120]
[406579703,1771953134010,-500.0,0.00045205,120]
[406579704,1771953134033,-500.0,0.00045205,120]
[406579705,1771953134056,-500.0,0.00045205,120]
[406579706,1771953134081,-500.0,0.00045205,120]
[406579707,1771953134104,-500.0,0.00045205,120]
[406579708,1771953134128,-500.0,0.00045205,120]
[406579709,1771953134164,-500.0,0.00045205,120]
[406579710,1771953134199,-500.0,0.00045205,120]
[406579711,1771953134223,-260.20469006,0.00045205,120]
[406579712,1771953134248,-948.42,0.00045205,30]
[406579713,1771953134275,-500.0,0.00045205,30]
[406579714,1771953134301,-500.0,0.00045205,30]
[406579715,1771953134344,-233.24050833,0.00045205,120]
[406579716,1771953134369,-500.0,0.00045205,30]
[406579717,1771953134393,-524.05235451,0.00045205,30]
[406579718,1771953134652,-500.0,0.00045205,120]
[406579719,1771953134679,-500.0,0.00045205,120]
[406579720,1771953134704,-500.0,0.00045205,120]
[406579721,1771953134728,-500.0,0.00045205,120]
[406579722,1771953134753,-616.9,0.00045205,120]
[406579723,1771953134779,-500.0,0.00045205,120]
[406579724,1771953134804,-500.0,0.00045205,120]
[406579725,1771953134831,-500.0,0.00045205,120]
[406579726,1771953134868,-500.0,0.00045205,120]
[406579727,1771953134891,-500.0,0.00045205,120]
[406579728,1771953134920,-500.0,0.00045205,120]
[406579729,1771953134946,-505.54970578,0.00045205,120]
[406579730,1771953134972,-500.0,0.00045205,120]
[406579731,1771953134998,-500.0,0.00045205,120]
[406579732,1771953135025,-500.0,0.00045205,120]
[406579733,1771953135051,-500.0,0.00045205,120]
[406579734,1771953135075,-500.0,0.00045205,120]
[406579735,1771953135099,-500.0,0.00045205,120]
[406579736,1771953135123,-500.0,0.00045205,120]
[406579737,1771953135147,-500.0,0.00045205,120]
[406579738,1771953135171,-500.0,0.00045205,120]
[406579739,1771953135197,-473.03792652,0.00045205,120]
[406579740,1771953135222,-608.34883277,0.00045205,120]
[406579741,1771953135247,-500.0,0.00045205,120]
[406579742,1771953135272,-500.0,0.00045205,120]
[406579743,1771953135297,-500.0,0.00045205,120]
[406579744,1771953135321,-500.0,0.00045205,120]
[406579745,1771953135349,-500.0,0.00045205,120]
[406579746,1771953135373,-500.0,0.00045205,120]
[406579747,1771953135398,-500.0,0.00045205,120]
[406579748,1771953135422,-556.14487932,0.00045205,120]
[406579749,1771953135447,-529.22814531,0.00045205,120]
[406579750,1771953135473,-601.7162385,0.00045205,120]
[406579751,1771953135497,-500.0,0.00045205,120]
[406579752,1771953135521,-365.7608033,0.00045205,120]
[406579753,1771953135546,-508.53608055,0.00045216,28]
[406579754,1771953135574,-508.53608055,0.00045271,28]
[406579755,1771953135602,-309.0,0.000453,30]
[406579756,1771953135626,-73986.36283481,0.000454,30]
[406579757,1771953135651,-173.87087054,0.000454,30]
[406579758,1771953135678,-948.42,0.00045479,30]
[406579759,1771953135708,-600.0,0.00045502,120]
[406579760,1771953135736,-157.92,0.00045513,14]
[406579761,1771953135763,-152.0,0.00045522,11]
[406579762,1771953135791,-3350.54971945,0.00045524,20]
[406579763,1771953135816,-300.0,0.00045536,30]
[406579764,1771953135841,-300.0,0.00045536,30]
[406579765,1771953135864,-151.0,0.00045537,120]
[406579766,1771953135889,-151.0,0.00045537,120]
[406579767,1771953135913,-151.0,0.00045537,120]
[406579768,1771953135938,-151.0,0.00045537,120]
[406579769,1771953135967,-253.373556,0.00045537,60]
[406579770,1771953135993,-253.373556,0.00045537,60]
[406579771,1771953136021,-253.373556,0.00045537,60]
[406579772,1771953136047,-253.373556,0.00045537,60]
[406579773,1771953136071,-253.373556,0.00045537,60]
[406579774,1771953136095,-253.373556,0.00045537,60]
[406579775,1771953136119,-253.373556,0.00045537,60]
[406579776,1771953136142,-253.373564,0.00045537,60]
[406579777,1771953136167,-400.28,0.00045537,120]
[406579778,1771953136191,-400.28,0.00045537,120]
[406579779,1771953136218,-400.28,0.00045537,120]
[406579780,1771953136243,-400.28,0.00045537,120]
[406579781,1771953136267,-400.28,0.00045537,120]
[406579782,1771953136292,-400.28,0.00045537,120]
[406579783,1771953136317,-400.28,0.00045537,120]
[406579784,1771953136340,-400.28,0.00045537,120]
[406579785,1771953136364,-661.679673,0.00045537,28]
[406579786,1771953136388,-661.679673,0.00045537,28]
[406579787,1771953136412,-661.679673,0.00045537,28]
[406579788,1771953136449,-661.679673,0.00045537,28]
[406579789,1771953136479,-661.679673,0.00045537,28]
[406579790,1771953136505,-661.679673,0.00045537,28]
[406579791,1771953136529,-661.679673,0.00045537,28]
[406579792,1771953136554,-661.679673,0.00045537,28]
[406579793,1771953136578,-661.679673,0.00045537,28]
[406579794,1771953136606,-661.679673,0.00045537,28]
[406579795,1771953136631,-661.679673,0.00045537,28]
[406579796,1771953136655,-661.679673,0.00045537,28]
[406579797,1771953136680,-661.679673,0.00045537,28]
[406579798,1771953136707,-661.679673,0.00045537,28]
[406579799,1771953136731,-661.679673,0.00045537,28]
[406579800,1771953136755,-661.679679,0.00045537,28]
[406579801,1771953136779,-200.0,0.00045564,120]
[406579802,1771953136803,-800.0,0.00045578,17]
[406579803,1771953136827,-800.0,0.00045578,17]
[406579804,1771953136855,-800.0,0.00045578,17]
[406579805,1771953136878,-800.0,0.00045578,17]
[406579806,1771953136902,-800.0,0.00045578,17]
[406579807,1771953136925,-800.0,0.00045578,17]
[406579808,1771953136952,-800.0,0.00045578,17]
[406579809,1771953136976,-800.0,0.00045578,17]
[406579810,1771953137001,-792.16960129,0.00045578,33]
[406579811,1771953137026,-1062.34374872,0.0004559,60]
[406579812,1771953137052,-50000.0,0.00045591,60]
[406579813,1771953137082,-50000.0,0.00045591,61]
[406579814,1771953137108,-50000.0,0.00045591,62]
[406579815,1771953137133,-50000.0,0.00045591,63]
[406579816,1771953137158,-50000.0,0.00045591,64]
[406579817,1771953137184,-50000.0,0.00045591,65]
[406579818,1771953137212,-50000.0,0.00045591,66]
[406579819,1771953137238,-50000.0,0.00045591,67]
[406579820,1771953137264,-50000.0,0.00045591,68]
[406579821,1771953137290,-50000.0,0.00045591,69]
[406579822,1771953137560,-50000.0,0.00045591,70]
[406579823,1771953137587,-50000.0,0.00045591,71]
[406579824,1771953137616,-50000.0,0.00045591,72]
[406579825,1771953137641,-50000.0,0.00045591,73]
[406579826,1771953137666,-50000.0,0.00045591,74]
[406579827,1771953137691,-496.80315212,0.00045592,120]
[406579828,1771953137717,-20917.38057759,0.00045592,56]
[406579829,1771953137742,-151.0,0.00045592,120]
[406579830,1771953137767,-151.0,0.00045592,120]
[406579831,1771953137792,-151.0,0.00045592,120]
[406579832,1771953137816,-151.0,0.00045592,120]
[406579833,1771953137840,-151.0,0.00045592,120]
[406579834,1771953137864,-151.0,0.00045592,120]
[406579835,1771953137888,-151.0,0.00045592,120]
[406579836,1771953137912,-151.0,0.00045592,120]
[406579837,1771953137937,-151.0,0.00045592,120]
[406579838,1771953137962,-151.0,0.00045592,120]
[406579839,1771953137986,-151.0,0.00045592,120]
[406579840,1771953138010,-151.0,0.00045592,120]
[406579841,1771953138033,-151.0,0.00045592,120]
[406579842,1771953138058,-151.0,0.00045592,120]
[406579843,1771953138081,-298.556101,0.00045592,120]
[406579844,1771953138108,-173.87087054,0.00045592,10]
[406579845,1771953138131,-500.0,0.000456,10]
[406579846,1771953138154,-165.14,0.000456,30]
[406579847,1771953138177,-1581.11,0.000456,60]
[406579848,1771953138202,-8305.18,0.000456,30]
[406579849,1771953138225,-578.99485946,0.000456,30]
[406579850,1771953138248,-200.5668252,0.00045602,120]
[406579851,1771953138271,-541.38186834,0.00045617,60]
[406579852,1771953138294,-150.0,0.00045625,30]
[406579853,1771953138317,-335.15190233,0.00045633,120]
[406579854,1771953138341,-1500.0,0.000457,14]
[406579855,1771953138365,-318.47497048,0.00045705,60]
[406579856,1771953138389,-500.0,0.0004571,120]
[406579857,1771953138413,-500.0,0.0004571,120]
[406579858,1771953138437,-578.43745946,0.0004571,120]
[406579859,1771953138460,-500.0,0.00045753,120]
[406579860,1771953138484,-948.42,0.00045753,30]
[406579861,1771953138507,-5000.0,0.000459,120]
[406579862,1771953138531,-500.0,0.000459,29]
[406579863,1771953138554,-150.0,0.00045982,30]
[406579864,1771953138577,-219.38628029,0.00046,30]
[406579865,1771953138604,-369.29742509,0.00046,90]
[406579866,1771953138628,-1529.20010766,0.00046,60]
[406579867,1771953138651,-729.93382851,0.00046,120]
[406579868,1771953138676,-597.75749805,0.00046,120]
[406579869,1771953138701,-10000.0,0.00046,120]
[406579870,1771953138723,-500.0,0.00046,30]
[406579871,1771953138748,-500.0,0.00046027,120]
[406579872,1771953138773,-948.42,0.00046027,30]
[406579873,1771953138797,-150.0,0.00046071,30]
[406579874,1771953138822,-150.0,0.00046183,30]
[406579875,1771953138847,-150.0,0.00046183,30]
[406579876,1771953138870,-150.0,0.00046183,30]
[406579877,1771953138893,-500.0,0.00046301,120]
[406579878,1771953138916,-948.42,0.00046301,30]
[406579879,1771953138941,-157.47695942,0.0004636,30]
[406579880,1771953138966,-85263.0,0.00046475,60]
[406579881,1771953138988,-500.0,0.000465,30]
[406579882,1771953139012,-150.0,0.00046517,30]
[406579883,1771953139036,-500.0,0.00046575,120]
[406579884,1771953139059,-948.42,0.00046575,30]
[406579885,1771953139082,-300.0,0.00046575,120]
[406579886,1771953139105,-300.0,0.00046575,120]
[406579887,1771953139131,-154.0,0.000466,120]
[406579888,1771953139157,-150.0,0.00046785,30]
[406579889,1771953139183,-384.4538,0.000468,90]
[406579890,1771953139209,-353.2516392,0.000468,120]
[406579891,1771953139235,-173.87087054,0.000468,30]
[406579892,1771953139260,-697.84,0.000468,120]
[406579893,1771953139285,-500.0,0.00046849,120]
[406579894,1771953139310,-948.42,0.00046849,30]
[406579895,1771953139334,-566.2031324,0.000469,120]
[406579896,1771953139358,-150.0,0.00046964,30]
[406579897,1771953139380,-211.0,0.0004698,30]
[406579898,1771953139406,-2266.58650093,0.00047,120]
[406579899,1771953139430,-1810.0,0.00047,120]
[406579900,1771953139453,-10000.0,0.00047,120]
[406579901,1771953139476,-500.0,0.00047123,120]
[406579902,1771953139499,-948.42,0.00047123,30]
[406579903,1771953139523,-150.0,0.00047187,30]
[406579904,1771953139546,-150.0,0.00047187,30]
[406579905,1771953139570,-150.0,0.00047187,30]
[406579906,1771953139595,-150.0,0.00047187,30]
[406579907,1771953139626,-150.0,0.00047187,30]
[406579908,1771953139651,-697.84,0.00047208,120]
[406579909,1771953139675,-233.7758294,0.00047296,14]
[406579910,1771953139698,-150.0,0.00047374,120]
[406579911,1771953139721,-152.0,0.00047381,12]
[406579912,1771953139744,-500.0,0.00047397,120]
[406579913,1771953139767,-948.42,0.00047397,30]
[406579914,1771953139791,-150.0,0.0004741,30]
[406579915,1771953139814,-218.90219818,0.000475,120]
[406579916,1771953139837,-226.22,0.000475,14]
[406579917,1771953139864,-150.0,0.00047589,30]
[406579918,1771953139887,-247.0,0.00047611,120]
[406579919,1771953139912,-697.84,0.00047616,120]
[406579920,1771953139935,-303.77478492,0.00047671,120]
[406579921,1771953139958,-948.42,0.00047671,30]
[406579922,1771953139981,-500.0,0.000478,10]
[406579923,1771953140005,-85263.0,0.00047828,60]
[406579924,1771953140028,-150.0,0.00047857,30]
[406579925,1771953140053,-158.35192275,0.00047867,30]
[406579926,1771953140075,-5000.0,0.000479,120]
[406579927,1771953140288,-2500.0,0.000479,120]
[406579928,1771953140315,-154.0,0.000479,120]
[406579929,1771953140339,-948.42,0.00047945,30]
[406579930,1771953140363,-20000.0,0.00048,120]
[406579931,1771953140387,-729.93382851,0.00048,120]
[406579932,1771953140411,-597.75749805,0.00048,120]
[406579933,1771953140435,-10000.0,0.00048,120]
[406579934,1771953140459,-500.0,0.00048,120]
[406579935,1771953140484,-697.84,0.00048024,120]
[406579936,1771953140507,-158.87,0.000481,14]
[406579937,1771953140531,-150.0,0.00048192,30]
[406579938,1771953140555,-150.0,0.00048192,30]
[406579939,1771953140579,-150.0,0.00048192,30]
[406579940,1771953140606,-226.21,0.000482,14]
[406579941,1771953140631,-948.45950757,0.00048219,30]
[406579942,1771953140660,-150.0,0.00048303,30]
[406579943,1771953140685,-150.0,0.00048392,30]
[406579944,1771953140710,-697.84,0.00048432,120]
[406579945,1771953140734,-1000.0,0.00048493,120]
[406579946,1771953140759,-470.47795518,0.00048493,120]
[406579947,1771953140783,-1858.62522745,0.000485,120]
[406579948,1771953140806,-422.35,0.0004867,90]
[406579949,1771953140830,-150.0,0.0004875,30]
[406579950,1771953140854,-30000.0,0.000488,120]
[406579951,1771953140879,-5200.0,0.000488,35]
[406579952,1771953140903,-13061.09089714,0.0004883,120]
[406579953,1771953140930,-697.84,0.0004884,120]
[406579954,1771953140955,-801281.0,0.00048875,30]
[406579955,1771953140978,-455.24359791,0.00048886,120]
[406579956,1771953141002,-3244.97549459,0.00048888,120]
[406579957,1771953141026,-200.69701502,0.000489,120]
[406579958,1771953141051,-1393.07702712,0.000489,120]
[406579959,1771953141075,-211.0,0.0004899,30]
[406579960,1771953141098,-453.0,0.00048996,120]
[406579961,1771953141122,-1000.0,0.00048999,120]
[406579962,1771953141146,-20000.0,0.00049,14]
[406579963,1771953141169,-1124.57984027,0.00049,120]
[406579964,1771953141192,-153.04871375,0.00049,30]
[406579965,1771953141216,-240.17718008,0.00049,90]
[406579966,1771953141240,-1810.0,0.00049,120]
[406579967,1771953141264,-233.90085091,0.00049,120]
[406579968,1771953141287,-560.0,0.00049,30]
[406579969,1771953141311,-15222.0,0.00049,120]
[406579970,1771953141334,-36000.0,0.00049,120]
[406579971,1771953141358,-26786.16704642,0.00049,120]
[406579972,1771953141382,-210.686,0.00049,120]
[406579973,1771953141406,-10000.0,0.00049,120]
[406579974,1771953141430,-5574.1991825,0.00049,30]
[406579975,1771953141454,-1174.71480961,0.00049,120]
[406579976,1771953141478,-226.21,0.00049,14]
[406579977,1771953141502,-247.84652071,0.000491,120]
[406579978,1771953141525,-1000.0,0.0004917,10]
[406579979,1771953141551,-85263.0,0.00049182,60]
[406579980,1771953141573,-159.58826812,0.00049196,30]
[406579981,1771953141598,-159.46402897,0.00049196,30]
[406579982,1771953141627,-167.20210228,0.00049196,30]
[406579983,1771953141650,-297.10091231,0.00049196,30]
[406579984,1771953141674,-151.93082519,0.00049196,30]
[406579985,1771953141698,-153.05443218,0.00049196,30]
[406579986,1771953141730,-150.0,0.00049196,30]
[406579987,1771953141756,-152.21946448,0.00049196,30]
[406579988,1771953141779,-154.8866515,0.00049196,30]
[406579989,1771953141807,-150.0,0.00049196,30]
[406579990,1771953141830,-150.0,0.00049196,30]
[406579991,1771953141854,-154.0,0.000492,120]
[406579992,1771953141878,-152.0,0.0004924,13]
[406579993,1771953141903,-697.84,0.00049248,120]
[406579994,1771953141927,-500.0,0.0004931,32]
[406579995,1771953141952,-158.511007,0.00049375,30]
[406579996,1771953141976,-1000000.0,0.000494,30]
[406579997,1771953141998,-1500000.0,0.000494,30]
[406579998,1771953142022,-1219316.52039675,0.000494,30]
[406580005,1771953778435,-3134.1453,9.148e-05,2]
[406580006,1771953778470,-3186.79567293,9.148e-05,2]
[406580007,1771953778661,-544.92372707,9.148e-05,2]
[406580008,1771953778688,-995.27618255,9.221e-05,2]
[406580009,1771953778716,-1200.0,9.231e-05,2]
[406580010,1771953778745,-164.0,9.232e-05,2]
[406580011,1771953778779,-299.59532076,9.232e-05,2]
[406580012,1771953778884,-3592.41953924,9.233e-05,2]
[406580013,1771953784358,-10000.01,9.233e-05,2]
[406580014,1771953784471,-2778.43953924,9.233e-05,2]
[406580015,1771953784494,-4443.13092152,9.233e-05,2]
[406580016,1771953870530,-1783.4215,9.249e-05,2]
[406580017,1771953870559,-1000.51,9.447e-05,2]
[406580018,1771953870587,-365.3371,9.566e-05,2]
[406580019,1771953870610,-162.32252474,9.695e-05,2]
[406580020,1771953870637,-500.0,9.695e-05,2]
[406580021,1771953870663,-500.0,9.695e-05,2]
[406580022,1771953870693,-500.0,9.695e-05,2]
[406580023,1771953870722,-500.0,9.695e-05,2]
[406580024,1771953870747,-500.0,9.695e-05,2]
[406580025,1771953870773,-500.0,9.695e-05,2]
[406580026,1771953870801,-500.0,9.695e-05,2]
[406580027,1771953870829,-500.0,9.695e-05,2]
[406580028,1771953870858,-500.0,9.695e-05,2]
[406580029,1771953870887,-500.0,9.695e-05,2]
[406580030,1771953870914,-500.0,9.695e-05,2]
[406580031,1771953870940,-500.0,9.695e-05,2]
[406580032,1771953870965,-500.0,9.695e-05,2]
[406580033,1771953870991,-500.0,9.695e-05,2]
[406580034,1771953871019,-500.0,9.695e-05,2]
[406580035,1771953871045,-500.0,9.695e-05,2]
[406580036,1771953871071,-500.0,9.695e-05,2]
[406580037,1771953871097,-500.0,9.695e-05,2]
[406580038,1771953871123,-500.0,9.695e-05,2]
[406580039,1771953871149,-500.0,9.695e-05,2]
[406580040,1771953871174,-500.0,9.695e-05,2]
[406580041,1771953871199,-500.0,9.695e-05,2]
[406580042,1771953871225,-500.0,9.695e-05,2]
[406580043,1771953871250,-500.0,9.695e-05,2]
[406580044,1771953871275,-500.0,9.695e-05,2]
[406580045,1771953871301,-500.0,9.695e-05,2]
[406580046,1771953871326,-500.0,9.695e-05,2]
[406580047,1771953871352,-500.0,9.695e-05,2]
[406580048,1771953871378,-500.0,9.695e-05,2]
[406580049,1771953871403,-500.0,9.695e-05,2]